bitfinex-derivatives/quotes_SOLF0:USTF0_20250820
["timestamp","ask_amount","ask_price","bid_price","bid_amount"]
[1755728249874,2.85960227,186.83,186.74,9.1060022]
[1755728250382,2.85960227,186.83,186.75,5.3543]
[1755728251176,2.85960227,186.83,186.74,3.7516022]
[1755728251376,2.85960227,186.83,186.74,2.82]
[1755728253783,2.82,186.81,186.71,2.82]
[1755728254684,2.82,186.81,186.72,5.355]
[1755728255283,2.82,186.81,186.71,8.1754]
[1755728255778,2.82,186.81,186.71,2.82]
[1755728255985,2.82,186.81,186.72,5.3551]
[1755728256180,2.82,186.81,186.71,2.82]
[1755728256979,2.82,186.81,186.71,8.1754]
[1755728257188,2.82,186.81,186.71,2.82]
[1755728257879,2.82,186.81,186.73,2.82]
[1755728258387,2.82,186.81,186.75,5.3543]
[1755728258682,2.82,186.81,186.75,8.1743]
[1755728258886,5.15576733,186.85,186.77,2.82]
[1755728259288,2.82,186.85,186.79,5.353]
[1755728259483,2.82,186.85,186.81,2.82]
[1755728259985,2.82,186.84,186.77,2.82]
[1755728260389,2.82,186.84,186.77,8.1737]
[1755728262891,2.82,186.84,186.77,2.82]
[1755728263991,2.82,186.84,186.73,2.82]
[1755728264192,2.82,186.84,186.73,7.26011538]
[1755728264691,2.82,186.84,186.76,2.82]
[1755728265087,2.82,186.84,186.77,5.3537]
[1755728266697,2.82,186.84,186.8,2.82]
[1755728267496,2.82,186.87,186.8,2.82]
[1755728267991,2.82,186.87,186.84,2.82]
[1755728268591,2.82,186.87,186.81,8.1725]
[1755728269386,2.82,186.87,186.83,2.82]
[1755728269589,2.82,186.86,186.79,7.26011538]
[1755728269787,2.82,186.86,186.79,2.82]
[1755728270587,2.82,186.86,186.8,5.3528]
[1755728271793,2.82,186.86,186.79,12.61321538]
[1755728271988,2.82,186.86,186.79,8.1731]
[1755728272491,2.82,186.86,186.79,2.82]
[1755728272992,2.82,186.86,186.8,5.3528]
[1755728273202,0.03592782,186.84,186.81,2.82]
[1755728274493,2.82,186.83,186.79,5.353]
[1755728274793,2.82,186.83,186.79,8.173]
[1755728275696,2.82,186.82,186.79,2.82]
[1755728275889,2.96,186.81,186.78,8.2533]
[1755728276685,2.96,186.81,186.77,6.77588271]
[1755728276686,0.03592782,186.84,186.79,5.3531]
[1755728276892,2.96,186.83,186.8,2.9]
[1755728277692,0.03592782,186.84,186.8,8.2528]
[1755728277899,0.03592782,186.84,186.81,2.9]
[1755728278397,0.03592782,186.84,186.81,8.2524]
[1755728278600,2.96,186.83,186.79,2.9]
[1755728278798,2.96,186.83,186.8,2.9]
[1755728279198,2.96,186.83,186.8,8.2527]
[1755728280404,0.03592782,186.84,186.81,2.9]
[1755728280604,2.99592782,186.84,186.81,2.9]
[1755728281500,0.03592782,186.84,186.79,2.9]
[1755728281697,0.03592782,186.84,186.78,4.44011538]
[1755728281698,0.03592782,186.84,186.83,5.23576733]
[1755728282105,0.03592782,186.84,186.83,10.58776733]
[1755728282704,145.32379051,186.92,186.86,5.3509]
[1755728283901,145.32379051,186.92,186.85,5.3514]
[1755728284103,2.96,186.91,186.83,2.9]
[1755728284305,142.36379051,186.92,186.87,0.03580427]
[1755728284504,2.96,186.91,186.87,2.93580427]
[1755728284702,142.36379051,186.92,186.87,2.93580427]
[1755728284903,2.96,186.89,186.87,0.03580427]
[1755728285105,2.96,186.91,186.87,0.03580427]
[1755728285304,2.96,186.89,186.87,0.03580427]
[1755728285506,2.96,186.88,186.87,0.03580427]
[1755728290315,135.16,186.9,186.87,0.03580427]
[1755728290514,135.16,186.9,186.87,2.93580427]
[1755728291020,132.2,186.9,186.87,2.93580427]
[1755728292020,135.16,186.9,186.87,2.93580427]
[1755728293322,2.96,186.88,186.87,0.03580427]
[1755728295017,135.16,186.9,186.87,0.03580427]
[1755728296120,135.16,186.9,186.87,2.93580427]
[1755728297117,135.16,186.9,186.87,0.03580427]
[1755728297323,2.96,186.89,186.87,0.03580427]
[1755728297821,2.96,186.88,186.87,0.03580427]
[1755728303622,5.29576733,186.88,186.87,0.03580427]
[1755728306531,5.29576733,186.88,186.79,2.86]
[1755728307418,5.29576733,186.88,186.8,2.86]
[1755728307921,0.03594075,186.85,186.82,2.86]
[1755728308327,0.03594075,186.85,186.83,2.86]
[1755728308826,2.91594075,186.85,186.78,4.44011538]
[1755728309023,2.91594075,186.85,186.77,7.30011538]
[1755728309217,2.91594075,186.85,186.78,5.3535]
[1755728309623,2.91594075,186.85,186.77,7.30011538]
[1755728310024,2.91594075,186.85,186.77,2.86]
[1755728310824,5.25170808,186.85,186.77,2.86]
[1755728318431,2.37170808,186.85,186.77,2.86]
[1755728318629,2.88,186.84,186.77,2.86]
[1755728319532,2.88,186.84,186.75,4.44011538]
[1755728319737,2.88,186.84,186.74,7.30011538]
[1755728320034,2.33576733,186.82,186.74,2.86]
[1755728320233,2.88,186.81,186.74,2.86]
[1755728320635,0.03966746,186.8,186.74,2.86]
[1755728323538,2.88,186.78,186.74,2.86]
[1755728323834,2.88,186.78,186.72,2.86]
[1755728326735,2.88,186.78,186.7,4.44011538]
[1755728326935,5.21576733,186.76,186.68,2.86]
[1755728327540,0.03979845,186.74,186.68,2.86]
[1755728328535,0.03979845,186.74,186.68,8.2163]
[1755728328838,0.03979845,186.74,186.68,2.86]
[1755728331241,0.03979845,186.74,186.7,2.86]
[1755728331639,2.91979845,186.74,186.65,2.86]
[1755728332137,2.91979845,186.74,186.66,5.3569]
[1755728332338,2.91979845,186.74,186.67,2.86]
[1755728332644,0.03979845,186.74,186.69,2.86]
[1755728332846,0.03979845,186.74,186.66,2.33576733]
[1755728333045,0.03979845,186.74,186.67,2.86]
[1755728333545,0.03979845,186.74,186.68,5.3561]
[1755728333941,0.03979845,186.74,186.7,2.86]
[1755728334136,0.03979845,186.74,186.71,2.86]
[1755728334836,0.03979845,186.74,186.69,5.356]
[1755728335043,0.03979845,186.74,186.67,2.86]
[1755728335641,0.03979845,186.74,186.71,2.86]
[1755728335837,0.03979845,186.74,186.67,2.91]
[1755728336033,0.03979845,186.74,186.71,5.3553]
[1755728336445,0.03979845,186.74,186.73,2.91]
[1755728340942,2.89,186.82,186.73,2.91]
[1755728341139,135.07,186.85,186.76,2.91]
[1755728341446,2.89,186.84,186.76,2.91]
[1755728341845,2.89,186.84,186.72,2.91]
[1755728342046,2.89,186.84,186.7,2.33576733]
[1755728342249,2.89,186.84,186.76,0.03882225]
[1755728342845,2.89,186.81,186.76,0.03882225]
[1755728343046,2.89,186.79,186.76,0.03882225]
[1755728343247,2.89,186.84,186.77,2.91]
[1755728345743,134.49576733,186.88,186.77,2.91]
[1755728345947,137.38576733,186.88,186.77,2.91]
[1755728346447,137.38576733,186.88,186.78,5.3533]
[1755728346647,137.38576733,186.88,186.81,0.03761413]
[1755728347246,135.05,186.88,186.81,2.94761413]
[1755728347850,140.80814736,186.89,186.81,2.94761413]
[1755728348053,140.80814736,186.89,186.83,2.91]
[1755728348243,2.89,186.88,186.81,5.39021413]
[1755728348452,2.89,186.88,186.82,2.91]
[1755728351548,140.80814736,186.89,186.82,2.91]
[1755728353556,143.69814736,186.89,186.85,2.91]
[1755728354054,2.89,186.88,186.85,2.91]
[1755728354349,140.80814736,186.89,186.85,2.91]
[1755728354350,140.80814736,186.89,186.85,0.03705954]
[1755728354558,2.89,186.93,186.86,2.91]
[1755728355054,132.14,186.94,186.87,5.3506]
[1755728355250,132.14,186.94,186.88,2.91]
[1755728355855,2.89,186.96,186.88,2.91]
[1755728356054,2.89,187.0,186.9,2.91]
[1755728356253,134.97,187.0,186.9,2.91]
[1755728356853,2.89,186.99,186.93,0.03819785]
[1755728364564,2.33576733,186.98,186.93,0.03819785]
[1755728364766,2.89,186.97,186.93,0.03819785]
[1755728364965,134.91,186.96,186.93,0.03819785]
[1755728365368,2.89,186.95,186.93,0.03819785]
[1755728367066,132.02,186.96,186.93,0.03819785]
[1755728367776,132.02,186.96,186.93,3.01819785]
[1755728368970,132.02,186.96,186.93,0.03819785]
[1755728369175,132.02,186.96,186.95,2.98]
[1755728369376,2.89,186.99,186.95,2.98]
[1755728369778,2.89,186.99,186.96,2.98]
[1755728370577,2.89,186.99,186.93,0.03819785]
[1755728372272,132.02,187.0,186.94,2.98]
[1755728373576,142.64008828,187.02,186.94,2.98]
[1755728373884,142.64008828,187.02,186.96,2.98]
[1755728374581,142.64008828,187.02,186.97,0.03751467]
[1755728374781,142.64008828,187.02,186.97,3.01751467]
[1755728374982,139.75008828,187.02,186.97,3.01751467]
[1755728375280,2.89,187.01,186.97,3.01751467]
[1755728375480,2.89,187.0,186.97,3.01751467]
[1755728375680,142.64008828,187.02,186.98,2.98]
[1755728376483,142.64008828,187.02,186.99,2.98]
[1755728378985,2.89,187.0,186.97,0.03751467]
[1755728379591,2.89,187.0,186.97,3.01751467]
[1755728379993,2.89,187.01,186.97,0.03751467]
[1755728380192,2.89,187.0,186.97,0.03751467]
[1755728380394,139.75008828,187.02,186.97,0.03751467]
[1755728380588,2.89,186.98,186.97,0.03751467]
[1755728383588,2.89,187.0,186.97,0.03751467]
[1755728383792,2.89,187.0,186.97,3.01751467]
[1755728384191,132.0,187.03,186.98,2.98]
[1755728384490,2.89,187.02,186.98,2.98]
[1755728384793,2.89,187.01,186.98,2.98]
[1755728386388,2.89,187.01,186.97,0.03751467]
[1755728386790,132.0,187.03,186.97,0.03751467]
[1755728386989,2.89,187.0,186.97,0.03751467]
[1755728387188,132.0,187.03,186.97,0.03751467]
[1755728387393,2.89,187.0,186.97,0.03751467]
[1755728387593,2.89,186.99,186.97,0.03751467]
[1755728388793,134.89,187.03,186.97,0.03751467]
[1755728389094,2.89,187.02,186.97,0.03751467]
[1755728389292,2.89,187.02,186.98,2.98]
[1755728389492,134.89,187.03,186.97,3.01751467]
[1755728390994,2.89,187.01,186.97,0.03751467]
[1755728391197,134.33576733,187.03,186.97,0.03751467]
[1755728391395,2.89,187.02,186.97,0.03751467]
[1755728391599,2.89,187.01,186.97,0.03751467]
[1755728391796,2.89,187.0,186.97,0.03751467]
[1755728392102,2.89,186.99,186.97,0.03751467]
[1755728393397,134.33576733,187.03,186.97,0.03751467]
[1755728393697,2.89,186.98,186.97,0.03751467]
[1755728394692,132.0,187.03,186.97,0.03751467]
[1755728394892,132.0,187.03,186.97,3.01751467]
[1755728396892,132.0,187.03,186.97,0.03751467]
[1755728397094,2.79,187.0,186.97,0.03751467]
[1755728397889,134.79,187.03,186.97,2.83751467]
[1755728399296,2.79,187.01,186.97,0.03751467]
[1755728399892,2.33576733,187.01,186.97,0.03751467]
[1755728400194,2.79,186.98,186.97,0.03751467]
[1755728400497,2.79,186.98,186.87,2.8]
[1755728400498,2.79,186.97,186.87,2.8]
[1755728400695,2.33576733,186.95,186.87,2.8]
[1755728400895,2.79,186.94,186.87,2.8]
[1755728401491,131.92,186.93,186.87,2.8]
[1755728401695,2.79,186.92,186.83,2.8]
[1755728401891,2.82872608,186.92,186.83,8.1519]
[1755728402288,5.16449341,186.92,186.83,2.8]
[1755728402494,2.79,186.91,186.83,2.8]
[1755728403496,2.79,186.91,186.83,8.1518]
[1755728403997,2.79,186.91,186.85,5.3514]
[1755728404198,2.79,186.91,186.87,2.8]
[1755728406303,0.03872608,186.92,186.86,8.1509]
[1755728406505,0.03872608,186.92,186.86,2.8]
[1755728408401,2.82872608,186.92,186.86,2.8]
[1755728408706,0.03872608,186.92,186.86,2.8]
[1755728409003,0.03872608,186.92,186.86,5.13576733]
[1755728409203,0.03872608,186.92,186.87,2.8]
[1755728409402,0.03872608,186.92,186.89,2.33576733]
[1755728409699,0.03872608,186.92,186.91,2.8]
[1755728410198,0.03872608,186.92,186.91,8.1497]
[1755728410799,0.03872608,186.92,186.91,8.6897]
[1755728411001,131.94,187.0,186.94,2.8]
[1755728411204,134.73,187.0,186.94,2.8]
[1755728412306,134.73,187.0,186.95,2.83650039]
[1755728412707,2.79,187.03,186.96,2.8]
[1755728413709,2.79,187.03,186.96,8.1483]
[1755728414010,2.79,187.03,186.96,2.8]
[1755728414406,2.79,187.03,186.96,8.1483]
[1755728414610,2.79,187.03,186.96,2.8]
[1755728416611,2.79,187.03,186.97,5.3478]
[1755728418611,2.79,187.03,186.96,8.1482]
[1755728419307,2.79,187.03,186.96,2.8]
[1755728421014,2.79,187.03,186.95,2.37226772]
[1755728421216,2.79,187.03,186.95,0.03650039]
[1755728422712,2.79,187.03,186.95,2.83650039]
[1755728423811,2.79,187.03,186.95,8.18500039]
[1755728424514,2.79,187.03,186.95,2.83650039]
[1755728425110,2.79,187.03,186.96,2.8]
[1755728425509,2.79,187.03,186.96,8.1481]
[1755728426019,2.79,187.03,186.96,10.48386733]
[1755728426220,2.79,187.03,186.97,5.348]
[1755728426420,2.79,187.03,186.96,5.13576733]
[1755728427121,2.79,187.03,186.96,8.1482]
[1755728427511,2.79,187.03,186.96,2.8]
[1755728427918,2.79,187.03,186.95,0.03650039]
[1755728428118,2.79,187.03,186.95,5.38500039]
[1755728428320,2.79,187.03,186.95,8.34500039]
[1755728428722,2.79,187.03,186.95,0.03650039]
[1755728428913,2.76,187.01,186.95,0.03650039]
[1755728430618,2.33576733,186.99,186.95,0.03650039]
[1755728431118,2.76,186.97,186.95,0.03650039]
[1755728431421,2.76,186.96,186.95,0.03650039]
[1755728434127,2.76,186.95,186.86,2.96]
[1755728435327,2.33576733,186.96,186.86,2.96]
[1755728435918,2.33576733,186.96,186.87,5.3507]
[1755728436129,2.33576733,186.96,186.86,2.33576733]
[1755728436429,136.95576733,186.98,186.89,5.3503]
[1755728436623,136.95576733,186.98,186.9,2.96]
[1755728438630,136.95576733,186.98,186.9,8.3099]
[1755728438925,2.76,186.98,186.9,2.96]
[1755728439230,2.76,186.98,186.92,2.96]
[1755728439631,136.97576733,187.01,186.92,2.96]
[1755728439932,134.64,187.01,186.93,2.96]
[1755728440230,2.76,187.0,186.93,2.96]
[1755728440430,2.76,186.97,186.93,2.96]
[1755728441530,2.76,186.97,186.94,2.96]
[1755728441730,0.03537295,186.98,186.91,2.33576733]
[1755728442031,2.79537295,186.98,186.91,5.29576733]
[1755728442531,2.79537295,186.98,186.91,2.96]
[1755728442720,2.37114028,186.98,186.88,2.96]
[1755728442926,2.76,186.97,186.88,2.96]
[1755728444931,2.33576733,186.95,186.88,2.96]
[1755728445128,2.76,186.94,186.88,2.96]
[1755728445631,2.76,186.94,186.85,2.96]
[1755728445832,2.33576733,186.92,186.85,2.96]
[1755728446031,5.09576733,186.92,186.85,2.96]
[1755728446730,2.76,186.91,186.81,2.96]
[1755728447235,2.76,186.91,186.81,8.3124]
[1755728447728,2.76,186.91,186.81,2.96]
[1755728448833,2.76,186.91,186.81,8.3126]
[1755728450728,2.76,186.91,186.8,2.96]
[1755728450938,2.76,186.91,186.82,2.33576733]
[1755728451136,2.76,186.91,186.83,2.96]
[1755728451435,2.33576733,186.95,186.85,5.3514]
[1755728451634,2.76,186.94,186.86,2.96]
[1755728452036,2.76,186.94,186.87,5.3508]
[1755728453337,2.76,186.94,186.88,5.3506]
[1755728453741,2.76,186.94,186.88,8.3106]
[1755728453937,2.76,186.94,186.85,2.33576733]
[1755728454438,2.76,186.94,186.84,2.96]
[1755728454439,2.76,186.94,186.84,8.3116]
[1755728454640,2.76,186.94,186.84,2.96]
[1755728454940,2.76,186.94,186.84,8.3116]
[1755728455338,2.76,186.94,186.84,2.96]
[1755728456840,2.76,186.94,186.84,8.3117]
[1755728459647,2.76,186.94,186.85,5.3514]
[1755728459945,2.76,186.94,186.83,2.8]
[1755728460344,2.76,186.94,186.87,2.8]
[1755728461044,2.76,186.94,186.83,2.8]
[1755728462047,134.21576733,187.0,186.83,2.8]
[1755728462048,2.89,186.91,186.83,2.8]
[1755728465153,2.33576733,186.92,186.83,2.8]
[1755728465648,2.33576733,186.98,186.89,5.3502]
[1755728465951,2.89,186.99,186.91,2.33576733]
[1755728466151,2.89,187.03,186.92,2.8]
[1755728466350,2.89,187.03,186.93,5.3489]
[1755728467455,2.89,187.03,186.95,2.8]
[1755728468554,140.85136764,187.06,186.97,2.8]
[1755728468859,5.22576733,187.12,187.0,2.33576733]
[1755728469055,5.22576733,187.12,187.02,5.3466]
[1755728469251,5.22576733,187.12,187.01,2.8]
[1755728469656,2.89,187.12,187.04,2.8]
[1755728470555,2.89,187.16,187.04,2.8]
[1755728470753,2.89,187.16,187.07,2.8]
[1755728471159,366.14791479,187.19,187.07,2.8]
[1755728471356,366.14791479,187.19,187.07,8.1449]
[1755728471659,2.89,187.23,187.08,3.67791479]
[1755728471860,2.89,187.23,187.1,5.3443]
[1755728472055,2.89,187.23,187.11,2.8]
[1755728472452,2.89,187.23,187.11,8.1439]
[1755728472658,2.89,187.23,187.11,2.8]
[1755728473057,2.89,187.23,187.13,5.3434]
[1755728473760,2.89,187.23,187.11,2.8]
[1755728474456,2.89,187.23,187.11,8.1439]
[1755728474960,2.89,187.23,187.11,2.8]
[1755728475962,3.67791479,187.21,187.07,2.8]
[1755728476163,2.89,187.2,187.07,2.8]
[1755728479256,2.89,187.2,187.07,8.1451]
[1755728479762,2.89,187.2,187.08,2.8]
[1755728481264,2.89,187.2,187.09,2.8]
[1755728483859,2.89,187.24,187.09,2.8]
[1755728484164,2.89,187.24,187.15,5.3429]
[1755728484353,2.89,187.24,187.16,2.8]
[1755728485160,2.89,187.24,187.16,8.1425]
[1755728487168,2.89,187.24,187.17,5.3423]
[1755728487369,131.72,187.26,187.13,2.77]
[1755728487769,131.72,187.26,187.19,5.3417]
[1755728488067,2.76,187.28,187.12,3.67791479]
[1755728488068,2.76,187.28,187.17,2.77]
[1755728488661,131.7,187.33,187.17,2.77]
[1755728488662,2.76,187.32,187.17,2.77]
[1755728488861,2.76,187.32,187.22,5.3407]
[1755728489062,2.76,187.32,187.17,2.77]
[1755728489471,2.76,187.32,187.25,2.77]
[1755728489665,131.7,187.33,187.25,2.77]
[1755728490266,141.15251282,187.37,187.25,2.77]
[1755728492061,141.15251282,187.37,187.26,5.3397]
[1755728492266,2.76,187.39,187.27,2.77]
[1755728493972,2.76,187.39,187.3,2.77]
[1755728494673,2.76,187.39,187.3,8.1086]
[1755728494872,2.76,187.39,187.3,2.77]
[1755728497074,2.76,187.39,187.31,5.3383]
[1755728497975,2.76,187.39,187.3,8.1085]
[1755728498470,131.66,187.42,187.31,2.77]
[1755728498871,2.76,187.41,187.31,2.77]
[1755728499872,2.76,187.41,187.31,8.1082]
[1755728501988,2.76,187.41,187.31,2.77]
[1755728502278,2.32789094,187.4,187.31,2.77]
[1755728502480,2.76,187.39,187.31,2.77]
[1755728504886,2.76,187.39,187.31,8.1081]
[1755728505579,2.76,187.39,187.31,2.77]
[1755728507685,2.76,187.39,187.22,2.32789094]
[1755728507882,2.32789094,187.37,187.27,2.77]
[1755728508191,2.76,187.36,187.27,8.1093]
[1755728508582,2.76,187.36,187.27,2.77]
[1755728508779,2.76,187.36,187.28,5.3391]
[1755728508981,2.76,187.36,187.27,2.77]
[1755728510490,2.76,187.33,187.24,2.77]
[1755728511090,2.76,187.33,187.24,8.1101]
[1755728511286,2.76,187.33,187.24,2.77]
[1755728511589,2.76,187.33,187.24,8.1102]
[1755728511991,2.76,187.33,187.24,2.77]
[1755728512194,2.76,187.33,187.24,8.1103]
[1755728512592,2.76,187.33,187.24,2.77]
[1755728513191,2.76,187.33,187.24,8.1103]
[1755728514689,2.76,187.33,187.25,5.34]
[1755728515594,2.76,187.33,187.24,2.77]
[1755728518592,2.76,187.33,187.24,8.1103]
[1755728518991,2.76,187.33,187.24,2.77]
[1755728519895,2.76,187.33,187.24,8.1101]
[1755728520095,2.76,187.33,187.25,2.81]
[1755728521091,2.32789094,187.31,187.25,2.81]
[1755728522895,5.29789094,187.31,187.25,2.81]
[1755728523092,5.29789094,187.31,187.2,5.3414]
[1755728523291,5.29789094,187.31,187.19,2.81]
[1755728523689,5.29789094,187.31,187.21,2.81]
[1755728524101,5.29789094,187.31,187.23,2.81]
[1755728525004,2.97,187.31,187.23,2.81]
[1755728525999,2.97,187.31,187.25,2.81]
[1755728526505,2.97,187.31,187.25,8.15]
[1755728527205,2.97,187.31,187.25,2.81]
[1755728531001,2.32789094,187.34,187.25,2.81]
[1755728531197,2.97,187.33,187.25,2.81]
[1755728533403,2.97,187.33,187.26,5.3398]
[1755728533609,2.97,187.35,187.27,2.81]
[1755728534695,2.97,187.35,187.28,5.3391]
[1755728534904,2.97,187.35,187.29,2.81]
[1755728535610,2.97,187.35,187.29,8.1489]
[1755728537506,2.97,187.38,187.32,2.81]
[1755728538504,2.97,187.38,187.28,2.81]
[1755728538906,2.97,187.38,187.28,8.1492]
[1755728539406,131.54,187.38,187.28,8.1492]
[1755728539607,2.97,187.37,187.28,8.1492]
[1755728542819,2.97,187.37,187.28,2.81]
[1755728543117,2.32789094,187.36,187.28,2.81]
[1755728543312,2.97,187.35,187.28,2.81]
[1755728544409,2.97,187.35,187.23,7.24837691]
[1755728544621,2.97,187.32,187.23,2.81]
[1755728545220,2.97,187.32,187.24,5.3401]
[1755728545521,2.97,187.32,187.25,2.81]
[1755728546121,2.97,187.32,187.25,8.15]
[1755728546318,0.03462516,187.3,187.25,8.15]
[1755728546522,0.03462516,187.3,187.25,5.34]
[1755728546822,0.03462516,187.3,187.28,2.97]
[1755728551228,2.88,187.29,187.25,2.97]
[1755728551429,2.88,187.29,187.26,2.97]
[1755728552022,2.88,187.28,187.23,8.3106]
[1755728552331,2.88,187.27,187.24,2.97]
[1755728554826,0.03462516,187.3,187.2,5.3414]
[1755728555031,2.91462516,187.3,187.2,8.3114]
[1755728555233,5.20789094,187.3,187.2,8.3114]
[1755728555534,0.03509638,187.27,187.21,2.97]
[1755728557735,0.03509638,187.27,187.21,8.3111]
[1755728559828,0.03509638,187.27,187.21,5.3411]
[1755728560034,0.03509638,187.27,187.24,2.97]
[1755728560233,2.91509638,187.27,187.24,2.97]
[1755728563740,0.03509638,187.27,187.24,2.32789094]
[1755728563936,0.03509638,187.27,187.25,2.97]
[1755728564841,0.03509638,187.27,187.26,5.3398]
[1755728565137,0.03509638,187.27,187.26,8.3098]
[1755728568851,0.03509638,187.27,187.26,2.97]
[1755728570237,2.88,187.26,187.23,2.97]
[1755728570645,0.03509638,187.27,187.21,7.39896599]
[1755728570947,0.03509638,187.27,187.21,12.74006599]
[1755728571146,0.03509638,187.27,187.21,8.3111]
[1755728574848,0.03509638,187.27,187.22,5.3408]
[1755728575048,2.91509638,187.27,187.23,2.97]
[1755728575847,2.91509638,187.27,187.24,2.78]
[1755728576649,0.03509638,187.27,187.24,2.78]
[1755728576849,2.99,187.26,187.24,2.78]
[1755728578155,0.03509638,187.27,187.21,2.78]
[1755728578449,0.03509638,187.27,187.22,6.75685693]
[1755728578651,0.03509638,187.27,187.25,2.78]
[1755728578852,0.03509638,187.27,187.26,2.78]
[1755728581653,0.03509638,187.27,187.26,8.1197]
[1755728585563,0.03509638,187.27,187.25,12.54238162]
[1755728585861,0.03509638,187.27,187.25,2.78]
[1755728586547,0.03509638,187.27,187.26,2.78]
[1755728586751,0.03509638,187.27,187.24,7.20248162]
[1755728586951,0.03509638,187.27,187.26,2.78]
[1755728587956,0.03509638,187.27,187.25,5.3399]
[1755728588456,0.03509638,187.27,187.26,8.1197]
[1755728588650,0.03509638,187.27,187.26,14.87007256]
[1755728588852,2.99,187.35,187.26,9.53037256]
[1755728589457,2.99,187.35,187.26,7.20248162]
[1755728589655,2.99,187.35,187.29,5.3387]
[1755728590361,2.99,187.35,187.3,0.0346816]
[1755728590562,2.32789094,187.38,187.3,0.0346816]
[1755728590762,2.99,187.33,187.3,0.0346816]
[1755728592662,2.99,187.37,187.3,0.0346816]
[1755728596764,2.99,187.34,187.3,0.0346816]
[1755728596964,131.46,187.38,187.21,7.20248162]
[1755728596965,2.99,187.31,187.21,7.20248162]
[1755728597257,2.32789094,187.3,187.21,7.20248162]
[1755728597564,2.99,187.29,187.21,12.54358162]
[1755728599063,2.99,187.29,187.21,4.42248162]
[1755728599264,2.99,187.29,187.19,4.42248162]
[1755728599560,2.99,187.29,187.18,7.20248162]
[1755728599766,2.99,187.29,187.19,5.3417]
[1755728600965,2.32789094,187.27,187.18,2.78]
[1755728601169,2.99,187.26,187.18,2.78]
[1755728601370,0.03380979,187.24,187.18,2.78]
[1755728601571,0.03380979,187.24,187.16,6.75037256]
[1755728601572,0.03380979,187.24,187.17,5.342]
[1755728601780,0.03380979,187.24,187.16,7.20248162]
[1755728601969,2.99,187.23,187.16,2.78]
[1755728604186,0.03380979,187.24,187.16,2.78]
[1755728604686,0.03380979,187.24,187.19,5.3415]
[1755728604977,3.02380979,187.24,187.2,2.78]
[1755728605681,0.03380979,187.24,187.2,2.78]
[1755728605985,2.92,187.23,187.2,2.78]
[1755728608082,0.03380979,187.24,187.22,3.01]
[1755728609279,0.03380979,187.24,187.23,3.01]
[1755728609588,0.03380979,187.24,187.18,5.33789094]
[1755728609885,0.03380979,187.24,187.18,10.67969094]
[1755728610274,0.03380979,187.24,187.18,5.33789094]
[1755728610478,0.03380979,187.24,187.19,5.3415]
[1755728610685,0.03380979,187.24,187.21,3.01]
[1755728612192,2.92,187.23,187.18,7.66979094]
[1755728612488,2.92,187.23,187.19,3.01]
[1755728613288,0.03380979,187.24,187.18,2.32789094]
[1755728613490,0.03380979,187.24,187.2,3.01]
[1755728613788,0.03380979,187.24,187.19,5.3417]